fUST/lending_fUST_20250822
["ID","MTS","AMOUNT","RATE_DAILY","PERIOD"]
[380582247,1755810644352,-688.12,0.00022464,3]
[380582248,1755810644362,-480.0,0.00022464,3]
[380582250,1755810644371,-1118.23,0.00022464,3]
[380582252,1755810644380,-480.0,0.00022464,3]
[380582254,1755810644389,-480.0,0.00022465,3]
[380582256,1755810644398,-977.66,0.00022465,3]
[380582258,1755810644407,-480.0,0.00022465,3]
[380582260,1755810644416,-532.02,0.00022465,3]
[380582262,1755810644426,-533.55,0.00022465,3]
[380582264,1755810644435,-1344.94,0.00022465,3]
[380582266,1755810644444,-661.63,0.00022465,3]
[380582268,1755810644453,-568.92,0.00022465,3]
[380582270,1755810644463,-480.0,0.00022465,3]
[380582272,1755810644472,-480.0,0.00022465,3]
[380582274,1755810644482,-837.09,0.00022465,3]
[380582276,1755810644491,-772.79,0.00022465,3]
[380582278,1755810644502,-844.29,0.00022465,3]
[380582280,1755810644511,-480.0,0.00022465,3]
[380582282,1755810644520,-480.0,0.00022465,3]
[380582284,1755810644530,-1837.78,0.00022465,3]
[380582286,1755810644539,-272.66095062,0.00022465,3]
[380582288,1755810644565,-480.0,0.00022465,3]
[380582290,1755810644575,-187.23706098,0.00022521,2]
[380582291,1755810644584,-500.0,0.00022521,2]
[380582293,1755810644594,-168.0,0.00022531,2]
[380582295,1755810644604,-168.0,0.00022599,2]
[380582297,1755810644613,-480.0,0.00022639,3]
[380582299,1755810644627,-480.0,0.00022639,3]
[380582301,1755810644636,-480.0,0.00022639,3]
[380582303,1755810644645,-2500.0,0.00022683,2]
[380582305,1755810644654,-1000.0,0.00022708,2]
[380582307,1755810644664,-688.12,0.00022738,3]
[380582309,1755810644674,-480.0,0.00022738,3]
[380582311,1755810644683,-1118.23,0.00022738,3]
[380582313,1755810644692,-479.5497,0.00022738,3]
[380582315,1755810644703,-480.0,0.00022739,3]
[380582317,1755810644713,-977.66,0.00022739,3]
[380582319,1755810644723,-602.23915146,0.00022739,3]
[380582321,1755810644732,-532.02,0.00022739,3]
[380582323,1755810644742,-533.55,0.00022739,3]
[380582325,1755810644751,-1344.94,0.00022739,3]
[380582327,1755810644761,-661.63,0.00022739,3]
[380582329,1755810644770,-568.92,0.00022739,3]
[380582331,1755810644779,-480.0,0.00022739,3]
[380582333,1755810644788,-480.0,0.00022739,3]
[380582335,1755810644798,-837.09,0.00022739,3]
[380582337,1755810644807,-772.79,0.00022739,3]
[380582339,1755810644817,-844.29,0.00022739,3]
[380582341,1755810644827,-480.0,0.00022739,3]
[380582343,1755810644836,-480.0,0.00022739,3]
[380582345,1755810644846,-1837.78,0.00022739,3]
[380582347,1755810644855,-480.0,0.00022739,3]
[380582349,1755810644865,-500.0,0.00022793,2]
[380582351,1755810644874,-500.0,0.00022793,2]
[380582352,1755810644883,-271.79791669,0.00022793,2]
[380582353,1755810644892,-503.6102621,0.00022793,2]
[380582354,1755810644902,-1000.0,0.00022793,2]
[380582356,1755810644911,-168.0,0.00022807,2]
[380582358,1755810644920,-187.23706098,0.00022822,2]
[380582360,1755810644930,-560.0,0.00022876,2]
[380582362,1755810644939,-151.0,0.000229,9]
[380582364,1755810644948,-1360.56091479,0.00022913,2]
[380582366,1755810644957,-480.0,0.00022913,3]
[380582368,1755810644966,-480.0,0.00022913,3]
[380582370,1755810644975,-480.0,0.00022913,3]
[380582372,1755810644985,-160.0,0.00022955,3]
[380582374,1755810644994,-2200.0,0.00022958,2]
[380582376,1755810645004,-1631.32184527,0.0002296,2]
[380582378,1755810645013,-502.76678058,0.00022991,2]
[380582380,1755810645022,-1093.77448701,0.00022991,2]
[380582382,1755810645031,-168.0139822,0.00022991,2]
[380582384,1755810645041,-610.27141104,0.00022991,2]
[380582386,1755810645050,-2351.0,0.00022997,2]
[380582388,1755810645060,-160.0,0.00023,3]
[380582390,1755810645070,-844.19128999,0.00023,3]
[380582392,1755810645079,-160.0,0.00023,2]
[380582394,1755810645088,-216.95272161,0.00023,3]
[380582396,1755810645098,-232.28399145,0.00023,3]
[380582397,1755810645107,-688.12,0.00023012,3]
[380582400,1755810645117,-480.0,0.00023012,3]
[380582402,1755810645128,-1118.23,0.00023012,3]
[380582403,1755810645137,-480.0,0.00023013,3]
[380582405,1755810645147,-977.66,0.00023013,3]
[380582407,1755810645156,-532.02,0.00023013,3]
[380582409,1755810645165,-533.55,0.00023013,3]
[380582411,1755810645175,-1344.94,0.00023013,3]
[380582413,1755810645184,-661.63,0.00023013,3]
[380582415,1755810645193,-568.92,0.00023013,3]
[380582417,1755810645202,-480.0,0.00023013,3]
[380582419,1755810645211,-480.0,0.00023013,3]
[380582434,1755810645338,-837.09,0.00023013,3]
[380582436,1755810645348,-772.79,0.00023013,3]
[380582438,1755810645358,-844.29,0.00023013,3]
[380582440,1755810645368,-480.0,0.00023013,3]
[380582442,1755810645377,-480.0,0.00023013,3]
[380582444,1755810645386,-1837.78,0.00023013,3]
[380582446,1755810645395,-480.0,0.00023013,3]
[380582448,1755810645405,-12690.45384448,0.0002302,3]
[380582450,1755810645415,-168.0,0.00023042,2]
[380582452,1755810645424,-4565.66,0.000231,7]
[380582454,1755810645433,-160.0,0.000231,7]
[380582456,1755810645442,-376.00439007,0.000231,7]
[380582458,1755810645451,-38025.65,0.000231,2]
[380582460,1755810645461,-500.0,0.00023106,2]
[380582462,1755810645470,-480.0,0.00023187,3]
[380582464,1755810645479,-610.08783574,0.00023187,3]
[380582466,1755810645489,-480.0,0.00023187,3]
[380582468,1755810645498,-2285.55955501,0.00023231,2]
[380582470,1755810645507,-688.12,0.00023286,3]
[380582472,1755810645518,-480.0,0.00023286,3]
[380582473,1755810645527,-1118.23,0.00023286,3]
[380582475,1755810645536,-480.0,0.00023287,3]
[380582478,1755810645545,-977.66,0.00023287,3]
[380582480,1755810645555,-532.02,0.00023287,3]
[380582482,1755810645565,-533.55,0.00023287,3]
[380582484,1755810645574,-1344.94,0.00023287,3]
[380582486,1755810645583,-661.63,0.00023287,3]
[380582488,1755810645593,-568.92,0.00023287,3]
[380582490,1755810645602,-480.0,0.00023287,3]
[380582491,1755810645611,-480.0,0.00023287,3]
[380582493,1755810645624,-837.09,0.00023287,3]
[380582495,1755810645634,-772.79,0.00023287,3]
[380582497,1755810645643,-844.29,0.00023287,3]
[380582499,1755810645652,-480.0,0.00023287,3]
[380582502,1755810645663,-480.0,0.00023287,3]
[380582504,1755810645672,-1837.78,0.00023287,3]
[380582505,1755810645681,-480.0,0.00023287,3]
[380582507,1755810645691,-1500.0,0.00023341,2]
[380582509,1755810645701,-427.0,0.00023362,2]
[380582511,1755810645711,-151.0,0.00023398,2]
[380582513,1755810645721,-151.0,0.000234,8]
[380582515,1755810645730,-427.0,0.00023423,2]
[380582517,1755810645740,-660.0,0.00023424,2]
[380582519,1755810645750,-480.0,0.00023461,3]
[380582521,1755810645759,-480.0,0.00023461,3]
[380582523,1755810645769,-1877.87,0.000235,7]
[380582525,1755810645778,-168.0,0.0002355,2]
[380582527,1755810645788,-688.12,0.0002356,3]
[380582529,1755810645798,-594.59465493,0.0002356,3]
[380582531,1755810645807,-1118.23,0.0002356,3]
[380582533,1755810645817,-480.0,0.00023561,3]
[380582535,1755810645827,-200.0,0.00023561,2]
[380582537,1755810645836,-200.0,0.00023561,2]
[380582539,1755810645845,-200.0,0.00023561,2]
[380582541,1755810645855,-200.0,0.00023561,2]
[380582543,1755810645864,-200.0,0.00023561,2]
[380582545,1755810645874,-200.0,0.00023561,2]
[380582547,1755810645883,-200.0,0.00023561,2]
[380582549,1755810645892,-200.0,0.00023561,2]
[380582551,1755810645901,-200.0,0.00023561,2]
[380582553,1755810645913,-200.0,0.00023561,2]
[380582555,1755810645922,-332.12173829,0.00023561,2]
[380582557,1755810645931,-977.66,0.00023561,3]
[380582559,1755810645941,-532.02,0.00023561,3]
[380582561,1755810645950,-533.55,0.00023561,3]
[380582563,1755810645959,-1344.94,0.00023561,3]
[380582565,1755810645969,-661.63,0.00023561,3]
[380582567,1755810645978,-568.92,0.00023561,3]
[380582569,1755810645987,-480.0,0.00023561,3]
[380582571,1755810645996,-480.0,0.00023561,3]
[380582573,1755810646006,-837.09,0.00023561,3]
[380582575,1755810646015,-772.79,0.00023561,3]
[380582577,1755810646025,-844.29,0.00023561,3]
[380582579,1755810646034,-480.0,0.00023561,3]
[380582581,1755810646043,-480.0,0.00023561,3]
[380582583,1755810646052,-1837.78,0.00023561,3]
[380582585,1755810646062,-522.34146876,0.00023561,3]
[380582587,1755810646071,-160.0,0.0002357,3]
[380582589,1755810646080,-168.0,0.00023602,2]
[380582591,1755810646090,-168.0,0.00023625,2]
[380582593,1755810646099,-6833.01996983,0.00023642,2]
[380582595,1755810646109,-480.0,0.00023735,3]
[380582597,1755810646118,-297.63200105,0.00023735,3]
[380582599,1755810646128,-152.582311,0.000238,10]
[380582601,1755810646138,-12491.45384448,0.000238,7]
[380582602,1755810646147,-1000.0,0.00023804,2]
[380582604,1755810646156,-688.12,0.00023834,3]
[380582606,1755810646165,-1118.23,0.00023834,3]
[380582608,1755810646175,-454.4502594,0.00023835,3]
[380582610,1755810646185,-977.66,0.00023835,3]
[380582612,1755810646195,-532.02,0.00023835,3]
[380582614,1755810646204,-533.55,0.00023835,3]
[380582616,1755810646213,-1344.94,0.00023835,3]
[380582618,1755810646223,-661.63,0.00023835,3]
[380582620,1755810646232,-568.92,0.00023835,3]
[380582622,1755810646242,-480.0,0.00023835,3]
[380582625,1755810646252,-480.0,0.00023835,3]
[380582627,1755810646262,-837.09,0.00023835,3]
[380582629,1755810646271,-772.79,0.00023835,3]
[380582631,1755810646281,-844.29,0.00023835,3]
[380582633,1755810646290,-480.0,0.00023835,3]
[380582635,1755810646300,-480.0,0.00023835,3]
[380582637,1755810646309,-1837.78,0.00023835,3]
[380582639,1755810646318,-1360.56091479,0.00023871,2]
[380582641,1755810646328,-2000.0,0.00023889,2]
[380582642,1755810646337,-151.0,0.000239,7]
[380582645,1755810646347,-645.0,0.000239,2]
[380582646,1755810646357,-168.0,0.00023903,2]
[380582648,1755810646366,-760.0,0.00023972,2]
[380582651,1755810646376,-151.0,0.00024,6]
[380582653,1755810646386,-151.0,0.00024,10]
[380582655,1755810646395,-844.19128999,0.00024,7]
[380582657,1755810646405,-216.95272161,0.00024,7]
[380582659,1755810646415,-232.28399145,0.00024,7]
[380582661,1755810646424,-547.52,0.00024009,3]
[380582663,1755810646433,-168.0,0.00024028,2]
[380582665,1755810646443,-160.0,0.00024046,4]
[380582667,1755810646452,-38025.65,0.000241,2]
[380582668,1755810646460,-688.12,0.00024108,3]
[380582670,1755810646470,-1118.23,0.00024108,3]
[380582673,1755810646480,-977.66,0.00024109,3]
[380582675,1755810646489,-532.02,0.00024109,3]
[380582676,1755810646499,-533.55,0.00024109,3]
[380582679,1755810646508,-1344.94,0.00024109,3]
[380582681,1755810646518,-661.63,0.00024109,3]
[380582683,1755810646527,-568.92,0.00024109,3]
[380582685,1755810646536,-480.0,0.00024109,3]
[380582687,1755810646546,-480.0,0.00024109,3]
[380582689,1755810646555,-837.09,0.00024109,3]
[380582691,1755810646566,-772.79,0.00024109,3]
[380582693,1755810646575,-844.29,0.00024109,3]
[380582694,1755810646584,-480.0,0.00024109,3]
[380582696,1755810646593,-480.0,0.00024109,3]
[380582699,1755810646603,-1837.78,0.00024109,3]
[380582700,1755810646612,-8016.46,0.00024109,4]
[380582702,1755810646622,-168.0,0.00024135,2]
[380582704,1755810646632,-2818.33680489,0.00024152,2]
[380582706,1755810646641,-12690.45384448,0.000242,3]
[380582708,1755810646651,-4565.66,0.000242,7]
[380582710,1755810646660,-168.0,0.000242,2]
[380582712,1755810646671,-800.0,0.00024241,2]
[380582714,1755810646680,-500.0,0.00024261,2]
[380582716,1755810646689,-1000.0,0.000243,2]
[380582718,1755810646699,-168.0,0.00024315,2]
[380582720,1755810646708,-688.12,0.00024382,3]
[380582722,1755810646718,-1118.23,0.00024382,3]
[380582724,1755810646727,-977.66,0.00024383,3]
[380582726,1755810646736,-532.02,0.00024383,3]
[380582728,1755810646745,-533.55,0.00024383,3]
[380582730,1755810646755,-1344.94,0.00024383,3]
[380582733,1755810646768,-661.63,0.00024383,3]
[380582735,1755810646781,-568.92,0.00024383,3]
[380582738,1755810646794,-480.0,0.00024383,3]
[380582740,1755810646806,-480.0,0.00024383,3]
[380582742,1755810646818,-837.09,0.00024383,3]
[380582744,1755810646828,-772.79,0.00024383,3]
[380582746,1755810646839,-844.29,0.00024383,3]
[380582749,1755810646851,-229.78835394,0.00024383,3]
[380582751,1755810646862,-480.0,0.00024383,3]
[380582753,1755810646874,-1837.78,0.00024383,3]
[380582756,1755810646886,-151.0,0.000244,10]
[380582758,1755810646898,-151.0,0.000244,5]
[380582760,1755810646910,-152.582311,0.000244,6]
[380582762,1755810646922,-151.0,0.000244,9]
[380582765,1755810646934,-386.8603418,0.00024411,2]
[380582767,1755810646946,-386.8603418,0.00024411,2]
[380582769,1755810646958,-386.8603418,0.00024411,2]
[380582771,1755810646969,-386.8603418,0.00024411,2]
[380582774,1755810646980,-386.8603418,0.00024411,2]
[380582776,1755810646992,-323.6375601,0.00024411,2]
[380582778,1755810647004,-2500.0,0.00024437,2]
[380582780,1755810647015,-201.0,0.0002449,10]
[380582783,1755810647026,-152.582311,0.000245,9]
[380582785,1755810647039,-168.0,0.00024502,2]
[380582787,1755810647051,-860.0,0.00024519,2]
[380582789,1755810647061,-6833.01996983,0.00024577,2]
[380582792,1755810647073,-330.44,0.00024627,2]
[380582794,1755810647084,-800.0,0.00024651,2]
[380582796,1755810647094,-688.12,0.00024656,3]
[380582798,1755810647105,-1118.23,0.00024656,3]
[380582800,1755810647117,-977.66,0.00024657,3]
[380582802,1755810647128,-532.02,0.00024657,3]
[380582805,1755810647141,-533.55,0.00024657,3]
[380582807,1755810647152,-1344.94,0.00024657,3]
[380582809,1755810647164,-661.63,0.00024657,3]
[380582811,1755810647177,-568.92,0.00024657,3]
[380582814,1755810647189,-216.03091096,0.00024657,3]
[380582827,1755810647309,-263.96908904,0.00024657,3]
[380582829,1755810647321,-363.51775356,0.00024657,3]
[380582831,1755810647332,-837.09,0.00024657,3]
[380582833,1755810647343,-772.79,0.00024657,3]
[380582835,1755810647353,-844.29,0.00024657,3]
[380582838,1755810647363,-330.73046932,0.00024657,3]
[380582840,1755810647374,-1837.78,0.00024657,3]
[380582842,1755810647384,-151.0,0.00024658,2]
[380582844,1755810647395,-190.89222303,0.00024658,2]
[380582846,1755810647406,-500.0,0.00024658,2]
[380582848,1755810647416,-151.0,0.00024658,2]
[380582850,1755810647427,-500.0,0.00024658,2]
[380582852,1755810647438,-756.0,0.00024658,2]
[380582855,1755810647448,-151.0,0.00024658,2]
[380582857,1755810647459,-151.0,0.00024658,2]
[380582858,1755810647470,-151.0,0.00024658,2]
[380582859,1755810647480,-151.0,0.00024658,2]
[380582860,1755810647491,-151.0,0.00024658,2]
[380582861,1755810647502,-500.0,0.00024658,2]
[380582862,1755810647514,-151.0,0.00024658,2]
[380582863,1755810647525,-500.0,0.00024658,2]
[380582864,1755810647535,-200.2887846,0.00024658,2]
[380582865,1755810647546,-264.62832098,0.00024658,2]
[380582866,1755810647557,-176.03762668,0.00024658,2]
[380582867,1755810647568,-151.0,0.00024658,2]
[380582868,1755810647579,-151.0,0.00024658,2]
[380582869,1755810647589,-151.0,0.00024658,2]
[380582870,1755810647600,-500.0,0.00024658,2]
[380582871,1755810647612,-500.0,0.00024658,2]
[380582872,1755810647627,-500.0,0.00024658,2]
[380582873,1755810647640,-151.0,0.00024658,2]
[380582874,1755810647651,-151.0,0.00024658,2]
[380582875,1755810647664,-151.0,0.00024658,2]
[380582876,1755810647675,-151.0,0.00024658,2]
[380582877,1755810647686,-800.0,0.0002466,2]
[380582878,1755810647697,-168.0,0.0002466,2]
[380582879,1755810647707,-800.0,0.00024669,2]
[380582880,1755810647718,-800.0,0.00024678,2]
[380582881,1755810647728,-800.0,0.00024698,2]
[380582882,1755810647739,-1877.87,0.000247,7]
[380582883,1755810647750,-800.0,0.0002472,2]
[380582884,1755810647760,-800.0,0.00024727,2]
[380582885,1755810647772,-800.0,0.00024735,2]
[380582886,1755810647781,-391.97789172,0.00024757,2]
[380582887,1755810647791,-188.9947007,0.0002476,2]
[380582888,1755810647800,-151.0,0.00024767,2]
[380582889,1755810647809,-800.0,0.00024774,2]
[380582890,1755810647818,-1000.0,0.000248,2]
[380582891,1755810647828,-800.0,0.00024822,2]
[380582892,1755810647838,-800.0,0.00024823,2]
[380582893,1755810647847,-12500.0,0.00024825,7]
[380582894,1755810647856,-1360.56091479,0.0002483,2]
[380582895,1755810647865,-306.0,0.00024849,2]
[380582896,1755810647874,-293.9988399,0.00024849,2]
[380582897,1755810647884,-293.9988399,0.00024849,2]
[380582898,1755810647894,-243.351079,0.00024849,2]
[380582899,1755810647903,-293.9988399,0.00024849,2]
[380582900,1755810647912,-500.0,0.00024873,2]
[380582901,1755810647921,-500.0,0.00024873,2]
[380582902,1755810647929,-150.0,0.00024873,2]
[380582903,1755810647939,-500.0,0.00024873,2]
[380582904,1755810647947,-500.0,0.00024873,2]
[380582905,1755810647956,-150.0,0.00024873,2]
[380582906,1755810647965,-157.30603126,0.00024873,2]
[380582907,1755810647974,-155.0,0.000249,3]
[380582908,1755810647983,-326.0,0.000249,3]
[380582909,1755810647992,-326.0,0.000249,3]
[380582910,1755810648001,-326.0,0.000249,3]
[380582911,1755810648011,-207.0,0.000249,2]
[380582912,1755810648020,-318.4688872,0.000249,2]
[380582913,1755810648029,-7669.51235928,0.000249,2]
[380582914,1755810648038,-1000.0,0.000249,2]
[380582915,1755810648047,-231773.57315878,0.000249,2]
[380582945,1755810649038,-644.29,0.00020547,2]
[380582947,1755810649048,-644.29,0.00020821,2]
[380582949,1755810649058,-644.29,0.00021095,2]
[380582951,1755810649067,-644.29,0.00021369,2]
[380582953,1755810649076,-644.29,0.00021643,2]
[380582954,1755810649086,-644.29,0.00021917,2]
[380582956,1755810649096,-556.16142713,0.000249,2]
[380582980,1755810649315,-480.0,0.00019178,2]
[380582982,1755810649325,-37.06354551,0.0001945,2]
[380582984,1755810649336,-440.88460635,0.0001945,2]
[380584230,1755810678498,359.55011609,0.00018867,2]
[380584231,1755810755500,162.54304105,0.00019078,2]
[380584233,1755811667935,18921.37847403,0.00018,2]
[380584234,1755811668463,13803.28677973,0.00018,2]
[380584235,1755811712502,3905.37722598,0.00017,2]
[380584236,1755811721778,2291.33599429,0.0001,2]
[380584237,1755811721802,4454.18353917,0.0001,2]
[380584238,1755811723388,1721.1179374,0.0001,2]
[380584239,1755811723935,13824.69852343,0.00019063,2]
[380584240,1755811723959,8560.31735338,0.00019063,2]
[380584241,1755811749226,-1200.0,0.00019176,2]
[380584242,1755811749249,-46409.40080737,0.00019177,2]
[380584243,1755811749273,-500.0,0.00019177,2]
[380584244,1755811749294,-500.0,0.00019177,2]
[380584245,1755811749318,-500.0,0.00019177,2]
[380584246,1755811749342,-500.0,0.00019177,2]
[380584247,1755811749364,-500.0,0.00019177,2]
[380584248,1755811749387,-500.0,0.00019177,2]
[380584249,1755811749408,-500.0,0.00019177,2]
[380584250,1755811749431,-500.0,0.00019177,2]
[380584251,1755811749452,-500.0,0.00019177,2]
[380584252,1755811749475,-500.0,0.00019177,2]
[380584253,1755811749497,-500.0,0.00019177,2]
[380584254,1755811749520,-500.0,0.00019177,2]
[380584255,1755811749541,-500.0,0.00019177,2]
[380584256,1755811749563,-500.0,0.00019177,2]
[380584257,1755811749586,-500.0,0.00019177,2]
[380584258,1755811749607,-500.0,0.00019177,2]
[380584259,1755811749630,-500.0,0.00019177,2]
[380584260,1755811749651,-500.0,0.00019177,2]
[380584261,1755811749674,-500.0,0.00019177,2]
[380584262,1755811749698,-279.70782833,0.00019177,2]
[380584263,1755811749722,-500.0,0.00019177,2]
[380584264,1755811749745,-500.0,0.00019177,2]
[380584265,1755811749767,-500.0,0.00019177,2]
[380584266,1755811749791,-519.66087023,0.00019177,2]
[380584267,1755811749819,-500.0,0.00019177,2]
[380584268,1755811749842,-529.97,0.00019178,2]
[380584269,1755811749881,-480.0,0.00019178,2]
[380584270,1755811749903,-480.0,0.00019178,2]
[380584271,1755811749926,-480.0,0.00019178,2]
[380584272,1755811749947,-480.0,0.00019178,2]
[380584273,1755811749969,-480.0,0.00019178,2]
[380584274,1755811749990,-480.0,0.00019178,2]
[380584275,1755811750192,-480.0,0.00019178,2]
[380584276,1755811750212,-480.0,0.00019178,2]
[380584277,1755811750232,-480.0,0.00019178,2]
[380584278,1755811750250,-480.0,0.00019178,2]
[380584279,1755811750269,-480.0,0.00019178,2]
[380584280,1755811750289,-480.0,0.00019178,2]
[380584281,1755811750309,-480.0,0.00019178,2]
[380584282,1755811750329,-480.0,0.00019178,2]
[380584283,1755811750349,-625.09,0.00019178,2]
[380584284,1755811750369,-490.79,0.00019178,2]
[380584285,1755811750388,-480.0,0.00019178,2]
[380584286,1755811750408,-486.45,0.00019178,2]
[380584287,1755811750427,-480.0,0.00019178,2]
[380584288,1755811750446,-480.0,0.00019178,2]
[380584289,1755811750465,-480.0,0.00019178,2]
[380584290,1755811750485,-480.0,0.00019178,2]
[380584291,1755811750503,-300.299995,0.00019178,2]
[380584292,1755811750522,-224.07157944,0.00019178,2]
[380584293,1755811750541,-480.0,0.00019178,2]
[380584294,1755811750561,-373.54936858,0.00019178,2]
[380584295,1755811750582,-480.0,0.00019178,2]
[380584296,1755811750605,-480.0,0.00019178,2]
[380584297,1755811750624,-480.0,0.00019178,2]
[380584298,1755811750643,-480.0,0.00019178,2]
[380584299,1755811750662,-480.0,0.00019178,2]
[380584300,1755811750682,-733.77,0.00019178,2]
[380584301,1755811750702,-480.0,0.00019178,2]
[380584302,1755811750721,-480.0,0.00019178,2]
[380584303,1755811750740,-190.01024453,0.00019178,2]
[380584304,1755811750760,-618.95,0.00019178,2]
[380584305,1755811750780,-480.0,0.00019178,2]
[380584306,1755811750802,-1533.13,0.00019178,2]
[380584307,1755811750822,-480.0,0.00019178,2]
[380584308,1755811750842,-480.0,0.00019178,2]
[380584309,1755811750864,-2386.2,0.00019178,2]
[380584310,1755811750885,-480.0,0.00019178,2]
[380584311,1755811750907,-480.0,0.00019178,2]
[380584312,1755811750927,-480.0,0.00019178,2]
[380584313,1755811750947,-480.0,0.00019178,2]
[380584314,1755811750967,-480.0,0.00019178,2]
[380584315,1755811750990,-1175.76,0.00019178,2]
[380584316,1755811751010,-555.05,0.00019178,2]
[380584317,1755811751031,-480.0,0.00019178,2]
[380584318,1755811751052,-480.0,0.00019178,2]
[380584319,1755811751074,-453.78716277,0.00019178,2]
[380584320,1755811751096,-480.0,0.00019178,2]
[380584321,1755811751117,-480.0,0.00019178,2]
[380584322,1755811751138,-480.0,0.00019178,2]
[380584323,1755811751169,-480.0,0.00019178,2]
[380584324,1755811751189,-480.0,0.00019178,2]
[380584325,1755811751219,-783.56,0.00019178,2]
[380584326,1755811751244,-480.0,0.00019178,2]
[380584327,1755811751264,-579.16,0.00019178,2]
[380584328,1755811751288,-480.0,0.00019178,2]
[380584329,1755811751312,-480.0,0.00019178,2]
[380584330,1755811751335,-463.16294561,0.00019178,2]
[380584331,1755811751355,-603.33,0.00019178,2]
[380584332,1755811751377,-699.65,0.00019178,2]
[380584333,1755811751400,-902.21,0.00019178,2]
[380584334,1755811751421,-718.95,0.00019178,2]
[380584335,1755811751442,-480.0,0.00019178,2]
[380584336,1755811751463,-480.0,0.00019178,2]
[380584337,1755811751483,-480.0,0.00019178,2]
[380584338,1755811751503,-480.0,0.00019178,2]
[380584339,1755811751524,-480.0,0.00019178,2]
[380584340,1755811751543,-502.96,0.00019178,2]
[380584341,1755811751564,-551.16,0.00019178,2]
[380584342,1755811751584,-480.0,0.00019178,2]
[380584343,1755811751604,-480.0,0.00019178,2]
[380584344,1755811751624,-480.0,0.00019178,2]
[380584345,1755811751644,-480.0,0.00019178,2]
[380584346,1755811751665,-480.0,0.00019178,2]
[380584347,1755811751685,-481.34962756,0.00019178,2]
[380584348,1755811751710,-480.0,0.00019178,2]
[380584349,1755811751731,-480.0,0.00019178,2]
[380584350,1755811751754,-480.0,0.00019178,2]
[380584351,1755811751775,-480.0,0.00019178,2]
[380584352,1755811751794,-480.0,0.00019178,2]
[380584353,1755811751816,-480.0,0.00019178,2]
[380584354,1755811751836,-480.0,0.00019178,2]
[380584355,1755811751856,-546.92497878,0.00019447,2]
[380584356,1755811751877,-494.99,0.00019447,2]
[380584357,1755811751897,-480.0,0.00019447,2]
[380584358,1755811751916,-504.0,0.00019447,2]
[380584359,1755811751938,-708.28,0.00019449,2]
[380584360,1755811751959,-689.37,0.00019449,2]
[380584361,1755811751979,-587.17,0.00019449,2]
[380584362,1755811751999,-150.38,0.00019452,2]
[380584363,1755811752020,-274.78,0.00019452,2]
[380584364,1755811752042,-626.61,0.00019452,2]
[380584365,1755811752064,-480.0,0.00019452,2]
[380584366,1755811752091,-400.68,0.00019452,2]
[380584367,1755811752111,-480.0,0.00019452,2]
[380584368,1755811752132,-480.0,0.00019452,2]
[380584369,1755811752155,-276.41,0.00019452,2]
[380584370,1755811752175,-480.0,0.00019452,2]